bitfinex-derivatives/quotes_BTCF0:USTF0_20241213
["timestamp","ask_amount","ask_price","bid_price","bid_amount"]
[1734064314150,0.67708574,99893.0,99892.0,0.013]
[1734064314339,0.52720993,99893.0,99892.0,0.013]
[1734064314880,0.57588188,99893.0,99892.0,0.013]
[1734064315652,0.57588179,99893.0,99892.0,0.013]
[1734064317549,0.67711503,99893.0,99892.0,0.013]
[1734064317745,0.57588147,99893.0,99892.0,0.013]
[1734064318045,0.52720993,99893.0,99892.0,0.013]
[1734064318655,0.67712578,99893.0,99892.0,0.013]
[1734064319048,0.52720993,99893.0,99892.0,0.013]
[1734064319852,0.67712578,99893.0,99892.0,0.013]
[1734064320250,0.52720993,99893.0,99892.0,0.013]
[1734064321566,0.57725593,99893.0,99892.0,0.013]
[1734064322243,0.72717178,99893.0,99892.0,0.013]
[1734064322650,0.57725593,99893.0,99892.0,0.013]
[1734064322951,0.21645593,99893.0,99892.0,0.013]
[1734064323149,0.14991585,99899.0,99892.0,0.063046]
[1734064323454,0.08994878,99894.0,99893.0,0.050046]
[1734064323756,0.08994878,99895.0,99894.0,0.050045]
[1734064324054,0.08994878,99895.0,99894.0,0.080345]
[1734064324457,0.08994878,99895.0,99894.0,0.230345]
[1734064325253,0.08994878,99896.0,99895.0,0.050045]
[1734064326047,0.050044,99897.0,99895.0,0.050045]
[1734064326249,0.050044,99897.0,99896.0,0.050044]
[1734064327257,0.050044,99896.0,99895.0,0.009]
[1734064327653,0.050044,99896.0,99894.0,0.004]
[1734064327954,0.050045,99895.0,99894.0,0.004]
[1734064328544,0.15015011,99895.0,99894.0,0.004]
[1734064328949,0.15015011,99895.0,99894.0,0.009]
[1734064329886,0.15015011,99895.0,99894.0,0.013]
[1734064330362,0.15015011,99895.0,99894.0,0.054045]
[1734064330552,0.15015011,99895.0,99894.0,0.063045]
[1734064332548,0.15015011,99895.0,99894.0,0.013]
[1734064334058,0.10010511,99895.0,99894.0,0.063045]
[1734064334467,0.11993599,99899.0,99894.0,0.063045]
[1734064334761,0.11993599,99899.0,99895.0,0.15]
[1734064334966,0.10010561,99898.0,99895.0,0.15]
[1734064336351,0.10010561,99898.0,99895.0,0.153]
[1734064337160,0.10010561,99898.0,99895.0,0.162]
[1734064337471,0.050044,99897.0,99895.0,0.162]
[1734064338158,0.1001036,99896.0,99895.0,0.162]
[1734064340362,0.1001036,99896.0,99895.0,0.34104837]
[1734064341152,0.1001036,99896.0,99895.0,0.19104837]
[1734064341357,0.22003959,99896.0,99895.0,0.19104837]
[1734064342865,0.1001036,99896.0,99895.0,0.012]
[1734064344465,0.22003959,99896.0,99895.0,0.012]
[1734064344672,0.1660036,99896.0,99895.0,0.012]
[1734064349373,0.31591945,99896.0,99895.0,0.012]
[1734064350569,0.1660036,99896.0,99895.0,0.012]
[1734064351270,0.1660036,99896.0,99895.0,0.19139739]
[1734064352261,0.1660036,99896.0,99895.0,0.012]
[1734064352262,0.31591945,99896.0,99895.0,0.012]
[1734064353572,0.1660036,99896.0,99895.0,0.19164628]
[1734064353775,0.1660036,99896.0,99895.0,0.012]
[1734064354164,0.2146703,99896.0,99895.0,0.012]
[1734064355081,0.1660036,99896.0,99895.0,0.012]
[1734064355764,0.1660036,99896.0,99895.0,0.19164628]
[1734064355965,0.1660036,99896.0,99895.0,0.012]
[1734064357269,0.1001036,99896.0,99895.0,0.012]
[1734064357472,0.1001036,99896.0,99895.0,0.19164628]
[1734064357974,0.1001036,99896.0,99895.0,0.34164628]
[1734064358766,0.1001036,99896.0,99895.0,0.19164628]
[1734064358972,0.14877024,99896.0,99895.0,0.012]
[1734064359775,0.14877025,99896.0,99895.0,0.012]
[1734064359978,0.50957025,99896.0,99895.0,0.012]
[1734064360774,0.14877025,99896.0,99895.0,0.012]
[1734064360977,0.1001036,99896.0,99895.0,0.012]
[1734064361678,0.14877112,99896.0,99895.0,0.012]
[1734064363076,0.1001036,99896.0,99895.0,0.012]
[1734064363789,0.55961554,99896.0,99895.0,0.012]
[1734064364089,0.45951194,99896.0,99895.0,0.012]
[1734064364470,0.55961654,99896.0,99895.0,0.012]
[1734064366276,0.55961943,99896.0,99895.0,0.012]
[1734064367376,0.66102524,99896.0,99895.0,0.012]
[1734064367579,0.14877245,99896.0,99895.0,0.012]
[1734064367776,0.25017752,99896.0,99895.0,0.012]
[1734064368980,0.1487715,99896.0,99895.0,0.012]
[1734064369683,0.25018427,99896.0,99895.0,0.012]
[1734064372382,0.30022827,99896.0,99895.0,0.012]
[1734064372582,0.1501486,99896.0,99895.0,0.012]
[1734064373581,0.30024885,99896.0,99895.0,0.012]
[1734064374191,0.1501486,99896.0,99895.0,0.012]
[1734064374488,0.19881625,99896.0,99895.0,0.012]
[1734064375688,0.1501486,99896.0,99895.0,0.012]
[1734064376293,0.19881638,99896.0,99895.0,0.012]
[1734064377089,0.1501486,99896.0,99895.0,0.012]
[1734064377786,0.19881614,99896.0,99895.0,0.012]
[1734064378086,0.19881621,99896.0,99895.0,0.012]
[1734064382784,0.1988182,99896.0,99895.0,0.012]
[1734064384393,0.19881872,99896.0,99895.0,0.012]
[1734064388797,0.1988198,99896.0,99895.0,0.012]
[1734064389399,0.050049,99886.0,99885.0,0.17975789]
[1734064389600,0.050051,99882.0,99881.0,0.17975789]
[1734064389801,0.050051,99882.0,99875.0,0.00150168]
[1734064389802,0.40947351,99882.0,99875.0,0.00150168]
[1734064389993,0.050054,99877.0,99875.0,0.00150168]
[1734064390388,0.04867837,99876.0,99875.0,0.00150168]
[1734064390592,0.05006,99864.0,99856.0,0.0321]
[1734064390798,0.12004447,99859.0,99856.0,0.03334]
[1734064391103,0.12893851,99859.0,99850.0,0.0318]
[1734064391292,0.15916801,99859.0,99850.0,0.0318]
[1734064391493,0.15916801,99859.0,99847.0,0.050069]
[1734064391996,0.2791205,99859.0,99847.0,0.050069]
[1734064392196,0.15916801,99859.0,99847.0,0.050069]
[1734064392393,0.15916801,99859.0,99858.0,0.31424]
[1734064392796,0.16016801,99859.0,99858.0,0.32324]
[1734064393699,0.2800502,99859.0,99858.0,0.32324]
[1734064394096,0.16009771,99859.0,99858.0,0.32324]
[1734064394407,0.15118464,99859.0,99858.0,0.32324]
[1734064394706,0.15118464,99859.0,99858.0,0.32124]
[1734064394707,0.16009087,99859.0,99858.0,0.32124]
[1734064396197,0.24985519,99859.0,99858.0,0.32124]
[1734064397194,0.16009087,99859.0,99858.0,0.32124]
[1734064398088,0.2498075,99859.0,99858.0,0.32124]
[1734064399206,0.16009087,99859.0,99858.0,0.32124]
[1734064402208,0.15118464,99859.0,99858.0,0.32124]
[1734064402392,0.1602456,99859.0,99858.0,0.32124]
[1734064402597,0.15118464,99859.0,99858.0,0.32124]
[1734064402894,0.16023923,99859.0,99858.0,0.32124]
[1734064405007,0.16021303,99859.0,99858.0,0.32124]
[1734064406001,0.1602146,99859.0,99858.0,0.32124]
[1734064408302,0.1602146,99859.0,99844.0,0.0308]
[1734064408303,0.05007,99845.0,99844.0,0.0308]
[1734064408501,0.05909996,99845.0,99844.0,0.0308]
[1734064408704,0.05909996,99845.0,99838.0,0.04202713]
[1734064408705,0.050073,99839.0,99838.0,0.04202713]
[1734064409003,0.05910296,99839.0,99838.0,0.04202713]
[1734064409208,0.05912113,99839.0,99838.0,0.04202713]
[1734064409510,0.15928289,99839.0,99837.0,0.00150232]
[1734064409702,0.00904813,99838.0,99837.0,0.00150232]
[1734064410307,0.10920989,99838.0,99837.0,0.00150232]
[1734064410806,0.11020989,99838.0,99837.0,0.01050232]
[1734064412308,0.11020989,99838.0,99837.0,0.01750232]
[1734064412309,0.11120989,99838.0,99837.0,0.01750232]
[1734064412608,0.11120989,99838.0,99837.0,0.00950232]
[1734064412812,0.11120206,99838.0,99837.0,0.00950232]
[1734064414906,0.11120206,99838.0,99837.0,0.15950232]
[1734064415113,0.11120206,99838.0,99837.0,0.00950232]
[1734064418727,0.10216176,99838.0,99837.0,0.00950232]
[1734064419014,0.11121931,99838.0,99837.0,0.00950232]
[1734064421915,0.10216176,99838.0,99837.0,0.00950232]
[1734064422217,0.11122599,99838.0,99837.0,0.00950232]
[1734064422717,0.47202599,99838.0,99837.0,0.00950232]
[1734064423717,0.1500509,99853.0,99837.0,1.03110232]
[1734064423920,0.18006108,99899.0,99886.0,0.050049]
[1734064424130,0.050032,99921.0,99886.0,0.050049]
[1734064424131,0.18006108,99893.0,99886.0,0.410849]
[1734064424424,0.17978709,99896.0,99886.0,0.45093873]
[1734064424725,0.14138566,99899.0,99898.0,0.050043]
[1734064424922,0.22846663,99899.0,99898.0,0.050043]
[1734064425124,0.22846663,99899.0,99898.0,0.00360032]
[1734064425125,0.19138905,99899.0,99898.0,0.00360032]
[1734064425318,0.04868156,99899.0,99898.0,0.050043]
[1734064425719,0.009,99896.0,99895.0,0.3608]
[1734064426321,0.009,99896.0,99895.0,0.410845]
[1734064426522,0.1,99900.0,99899.0,0.050043]
[1734064429628,0.101,99900.0,99899.0,0.051043]
[1734064430120,0.103,99900.0,99899.0,0.051043]
[1734064432825,0.103,99900.0,99899.0,0.411843]
[1734064434639,0.2031006,99900.0,99899.0,0.411843]
[1734064446131,0.103,99900.0,99899.0,0.411843]
[1734064446530,0.103,99900.0,99899.0,0.441843]
[1734064449840,0.103,99900.0,99899.0,0.411843]
[1734064453135,0.103,99900.0,99899.0,0.67995828]
[1734064454229,0.103,99900.0,99899.0,0.441843]
[1734064455136,0.103,99900.0,99899.0,0.7412141]
[1734064455433,0.103,99900.0,99899.0,0.411843]
[1734064456135,0.19302086,99900.0,99899.0,0.411843]
[1734064456537,0.19302115,99900.0,99899.0,0.411843]
[1734064457333,0.19302175,99900.0,99899.0,0.411843]
[1734064457534,0.103,99900.0,99899.0,0.411843]
[1734064457739,0.19302149,99900.0,99899.0,0.411843]
[1734064458040,0.103,99900.0,99899.0,0.411843]
[1734064461642,0.050021,99943.0,99912.0,0.050036]
[1734064461643,0.14977786,99922.0,99912.0,0.050036]
[1734064461826,0.14977786,99923.0,99921.0,0.410832]
[1734064462029,0.1001006,99923.0,99922.0,0.050031]
[1734064462242,0.0612,99933.0,99921.0,0.3608]
[1734064462243,0.14977786,99926.0,99921.0,0.3608]
[1734064462538,0.18277786,99925.0,99924.0,0.05003]
[1734064463130,0.13307756,99925.0,99924.0,0.05003]
[1734064463835,0.14207756,99925.0,99924.0,0.05103]
[1734064464964,0.14207756,99925.0,99924.0,0.05203]
[1734064466338,0.10907756,99925.0,99924.0,0.05203]
[1734064486153,0.22894433,99925.0,99924.0,0.05203]
[1734064486351,0.10907756,99925.0,99924.0,0.05203]
[1734064487249,0.22894433,99925.0,99924.0,0.05203]
[1734064488246,0.10907756,99925.0,99924.0,0.05203]
[1734064491155,0.25885542,99925.0,99924.0,0.05203]
[1734064492753,0.25885542,99925.0,99924.0,0.29157748]
[1734064492754,0.10907756,99925.0,99924.0,0.29157748]
[1734064492960,0.009,99925.0,99924.0,0.05203]
[1734064493156,0.009,99925.0,99924.0,0.10932623]
[1734064493355,0.09903866,99925.0,99924.0,0.37706548]
[1734064493552,0.009,99925.0,99924.0,0.37706548]
[1734064494156,0.009,99925.0,99924.0,0.67640789]
[1734064495256,0.09003866,99927.0,99924.0,0.05829623]
[1734064495563,0.09003866,99927.0,99926.0,0.050029]
[1734064495858,0.09003866,99928.0,99926.0,0.10732523]
[1734064496158,0.09003866,99928.0,99927.0,0.05729623]
[1734064497261,0.005,99928.0,99927.0,0.10732523]
[1734064497961,0.09503866,99928.0,99927.0,0.10732523]
[1734064498167,0.09603866,99928.0,99927.0,0.10832523]
[1734064498348,0.006,99928.0,99927.0,0.051029]
[1734064498552,0.001,99928.0,99927.0,0.051029]
[1734064498861,0.007,99928.0,99927.0,0.052029]
[1734064501160,0.007,99928.0,99927.0,0.34866904]
[1734064506661,0.007,99928.0,99927.0,0.10934105]
[1734064506662,0.09695895,99928.0,99927.0,0.10934105]
[1734064506959,0.09695895,99928.0,99927.0,0.29131823]
[1734064506960,0.007,99928.0,99927.0,0.29131823]
[1734064509166,0.007,99928.0,99927.0,0.10932125]
[1734064514667,0.001,99928.0,99927.0,0.11732125]
[1734064514866,0.08995895,99931.0,99927.0,0.11732125]
[1734064515068,0.08995895,99931.0,99930.0,0.28926116]
[1734064515267,0.08995895,99931.0,99930.0,0.050027]
[1734064516268,0.0306,99933.0,99932.0,0.050026]
[1734064518074,0.0316,99933.0,99932.0,0.051026]
[1734064518560,0.0366,99933.0,99932.0,0.052026]
[1734064519769,0.0366,99933.0,99932.0,0.30120702]
[1734064520167,0.0366,99933.0,99932.0,0.06195902]
[1734064520363,0.0366,99933.0,99932.0,0.35858426]
[1734064521171,0.0366,99933.0,99932.0,0.11924642]
[1734064522464,0.1566934,99933.0,99932.0,0.06195902]
[1734064527273,0.1566934,99933.0,99932.0,0.11930343]
[1734064528083,0.0366,99933.0,99932.0,0.11930343]
[1734064529280,0.1566934,99933.0,99932.0,0.11930343]
[1734064529485,0.0366,99933.0,99932.0,0.11930343]
[1734064530077,0.0366,99933.0,99932.0,0.10937041]
[1734064530580,0.1566934,99933.0,99932.0,0.10937041]
[1734064530781,0.0366,99933.0,99932.0,0.10937041]
[1734064531679,0.0366,99933.0,99932.0,0.052026]
[1734064533182,0.0366,99933.0,99932.0,0.412826]
[1734064533383,0.0366,99933.0,99932.0,0.442826]
[1734064533580,0.0366,99933.0,99932.0,0.50017107]
[1734064534085,0.15664532,99933.0,99932.0,0.50017107]
[1734064534486,0.0366,99933.0,99932.0,0.50017107]
[1734064535678,0.12604974,99933.0,99932.0,0.50017107]
[1734064535986,0.006,99933.0,99932.0,0.50017107]
[1734064536390,0.12604974,99933.0,99932.0,0.50017107]
[1734064538787,0.006,99933.0,99932.0,0.50017107]
[1734064538977,0.006,99933.0,99932.0,0.47017107]
[1734064541081,0.006,99933.0,99932.0,0.412826]
[1734064543594,0.006,99933.0,99932.0,0.47018189]
[1734064543801,0.006,99933.0,99932.0,0.412826]
[1734064545198,0.006,99933.0,99932.0,0.47018276]
[1734064548097,0.006,99933.0,99932.0,0.10938276]
[1734064553305,0.12606647,99933.0,99932.0,0.10938276]
[1734064553707,0.006,99933.0,99932.0,0.10938276]
[1734064559506,3.5e-07,99933.0,99932.0,0.67644434]
[1734064559708,0.17969028,99970.0,99968.0,0.050008]
[1734064559906,0.0486332,99969.0,99968.0,0.050008]
[1734064560117,0.27870551,99969.0,99968.0,0.050008]
[1734064560322,0.22869851,99969.0,99968.0,0.050008]
[1734064560516,0.050007,99970.0,99968.0,0.050008]
[1734064560911,0.1500385,99970.0,99968.0,0.050008]
[1734064561110,0.1500385,99970.0,99968.0,0.051008]
[1734064561415,0.005,99969.0,99968.0,0.002]
[1734064561808,0.055007,99970.0,99968.0,0.002]
[1734064562216,0.1000315,99969.0,99968.0,0.002]
[1734064563812,0.1000315,99969.0,99968.0,0.001]
[1734064564011,0.1000315,99969.0,99968.0,0.002]
[1734064568415,0.050007,99970.0,99968.0,0.002]
[1734064568617,0.050007,99970.0,99969.0,0.050007]
[1734064570217,0.051007,99970.0,99969.0,0.050007]
[1734064570720,0.050007,99970.0,99969.0,0.050007]
[1734064570912,0.051007,99970.0,99969.0,0.051007]
[1734064571113,0.051007,99970.0,99969.0,0.001]
[1734064571914,0.1510375,99970.0,99969.0,0.001]
[1734064572409,0.1510375,99970.0,99969.0,0.002]
[1734064575823,0.1010305,99970.0,99969.0,0.002]
[1734064576326,0.1010305,99970.0,99969.0,0.032]
[1734064576923,0.1010305,99970.0,99969.0,0.002]
[1734064578624,0.1010305,99970.0,99969.0,0.001]
[1734064578824,0.1010305,99970.0,99969.0,0.002]
[1734064580824,0.001,99970.0,99969.0,0.3628]
[1734064581030,0.01137642,99976.0,99969.0,0.3628]
[1734064581031,0.00150077,99976.0,99969.0,0.3628]
[1734064581328,0.00150077,99976.0,99975.0,0.050004]
[1734064583630,0.00150077,99976.0,99975.0,0.052004]
[1734064588137,0.00150077,99976.0,99975.0,0.29039195]
[1734064588332,0.00150077,99976.0,99975.0,0.29036334]
[1734064588530,0.00150077,99976.0,99975.0,0.052004]
[1734064588939,0.00150077,99976.0,99975.0,0.051004]
[1734064589130,0.00150077,99976.0,99975.0,0.053004]
[1734064589543,0.00150077,99976.0,99975.0,0.052004]
[1734064589737,0.00150077,99976.0,99975.0,0.061004]
[1734064592749,0.0333,99987.0,99986.0,0.049999]
[1734064592938,0.0333,99987.0,99986.0,0.410799]
[1734064593940,0.049997,99990.0,99986.0,0.3618]
[1734064594138,0.049994,99996.0,99994.0,0.049995]
[1734064594834,0.1,100000.0,99998.0,0.049993]
[1734064595234,0.149992,100000.0,99998.0,0.049993]
[1734064595536,0.100005,99999.0,99998.0,0.049993]
[1734064596335,0.100005,99999.0,99998.0,0.050993]
[1734064597037,0.100005,99999.0,99998.0,0.051993]
[1734064598542,0.10983609,100000.0,99998.0,0.051993]
[1734064599736,0.10983609,100000.0,99998.0,0.050993]
[1734064600044,0.10983609,100000.0,99998.0,0.051993]
[1734064602139,0.1,100000.0,99998.0,0.051993]
[1734064603736,0.1,100000.0,99999.0,0.3608]
[1734064605048,0.1,100000.0,99999.0,0.3618]
[1734064605945,0.05982315,100010.0,100000.0,0.049992]
[1734064606153,0.05982315,100010.0,100000.0,0.17619448]
[1734064606353,0.15982365,100010.0,100000.0,0.17619448]
[1734064607161,0.15982365,100010.0,100000.0,0.17719448]
[1734064607344,0.15982365,100010.0,100000.0,0.17819448]
[1734064608148,0.19282365,100010.0,100000.0,0.17819448]
[1734064610447,0.22512365,100010.0,100000.0,0.35710859]
[1734064611060,0.25782365,100010.0,100000.0,0.35710859]
[1734064611356,0.20783365,100010.0,100000.0,0.17819448]
[1734064611556,0.20783365,100010.0,100000.0,0.35710859]
[1734064612358,0.25782065,100010.0,100000.0,0.35710859]
[1734064614661,0.15982065,100010.0,100000.0,0.35710859]
[1734064614860,0.3297443,100020.0,100010.0,0.049987]
[1734064614861,0.19966199,100020.0,100010.0,0.049987]
[1734064615061,0.19966199,100020.0,100010.0,0.65257456]
[1734064615062,0.049983,100020.0,100010.0,0.65257456]
[1734064615357,0.149978,100020.0,100010.0,0.65257456]
[1734064616058,0.149978,100020.0,100010.0,0.65357456]
[1734064616365,0.25602968,100030.0,100020.0,0.049982]
[1734064616659,0.35601468,100030.0,100020.0,0.53698448]
[1734064617252,0.20633569,100030.0,100020.0,0.53698448]
[1734064617558,0.20633569,100030.0,100020.0,0.47388324]
[1734064617763,0.20633569,100030.0,100020.0,0.47488324]
[1734064618468,0.20633569,100030.0,100020.0,0.53798448]
[1734064618665,0.10635069,100030.0,100020.0,0.53798448]
[1734064618865,0.0936,100030.0,100020.0,0.53798448]
[1734064619270,0.0936,100030.0,100020.0,0.53898448]
[1734064619663,0.21320701,100030.0,100020.0,0.53898448]
[1734064622473,0.21320701,100030.0,100020.0,0.65456956]
[1734064622676,0.26318401,100030.0,100020.0,0.7176708]
[1734064623462,0.26318401,100030.0,100020.0,0.65456956]
[1734064623665,0.36315901,100030.0,100020.0,0.65456956]
[1734064625881,0.78706025,100030.0,100020.0,0.002]
[1734064626176,0.049982,100020.0,100010.0,0.29177356]
[1734064626367,0.1695975,100020.0,100010.0,0.29177356]
[1734064626561,0.1695975,100020.0,100010.0,0.32177356]
[1734064626880,0.2695725,100020.0,100010.0,0.32177356]
[1734064627262,0.2695725,100020.0,100010.0,0.68357356]
[1734064627471,0.2695725,100020.0,100010.0,0.32277356]
[1734064628368,0.33267374,100020.0,100010.0,0.32277356]
[1734064628764,0.33267374,100020.0,100010.0,0.27287356]
[1734064629078,0.48235273,100020.0,100010.0,0.031]
[1734064629276,0.84315273,100020.0,100010.0,0.031]
[1734064632171,0.85538053,100020.0,100010.0,0.031]
[1734064632681,0.73576503,100020.0,100010.0,0.031]
[1734064634274,0.91583034,100020.0,100010.0,0.031]
[1734064634478,0.91583034,100020.0,100000.0,0.3608]
[1734064634479,0.82925259,100020.0,100000.0,0.3608]
[1734064634670,0.44543635,100010.0,100000.0,0.3608]
[1734064635273,0.54543135,100010.0,100000.0,0.3608]
[1734064635672,0.54543135,100010.0,100000.0,0.3638]
[1734064636170,0.54543135,100010.0,100000.0,0.3648]
[1734064636868,0.90623135,100010.0,100000.0,0.3648]
[1734064637274,0.84313011,100010.0,100000.0,0.3618]
[1734064637479,0.84313011,100010.0,100000.0,0.49700248]
[1734064637480,0.063,100010.0,100000.0,0.49700248]
[1734064637679,0.18269901,100010.0,100000.0,0.49700248]
[1734064637875,0.18269901,100010.0,100000.0,0.73555462]
[1734064638479,0.18269901,100010.0,100000.0,0.49700248]
[1734064638684,0.063,100010.0,100000.0,0.79266088]
[1734064638884,0.063,100010.0,100000.0,0.80536332]
[1734064639187,0.063,100010.0,100000.0,0.80836332]
[1734064644479,0.063,100010.0,100000.0,1.16916332]
[1734064644983,0.11969901,100020.0,100010.0,0.049987]
[1734064645184,0.39486237,100030.0,100010.0,0.8021379]
[1734064645379,0.39486237,100030.0,100020.0,0.47388324]
[1734064645582,0.49485737,100030.0,100020.0,0.47388324]
[1734064646579,0.44487937,100030.0,100020.0,0.47388324]
[1734064646779,0.43223185,100030.0,100020.0,0.47388324]
[1734064646987,0.49533309,100030.0,100020.0,0.410782]
[1734064647381,0.43223185,100030.0,100020.0,0.410782]
[1734064647588,0.43223185,100030.0,100020.0,0.47388324]
[1734064648188,0.43523185,100030.0,100020.0,0.47588324]
[1734064649688,0.28559401,100030.0,100020.0,0.47588324]
[1734064649878,0.43523185,100030.0,100020.0,0.47588324]
[1734064650576,0.43523185,100030.0,100020.0,0.77132164]
[1734064650577,0.28559401,100030.0,100020.0,0.77132164]
[1734064652592,0.28559401,100030.0,100020.0,0.77132206]
[1734064653392,0.28559401,100030.0,100020.0,0.71422664]
[1734064655497,0.165895,100030.0,100020.0,0.71422664]
[1734064656400,0.28559401,100030.0,100020.0,0.47588324]
[1734064660394,0.18559901,100030.0,100020.0,0.47588324]
[1734064661399,0.18559901,100030.0,100020.0,0.53898448]
[1734064662597,0.0659,100030.0,100020.0,0.53898448]
[1734064662901,0.18559901,100030.0,100020.0,0.53898448]
[1734064664703,0.18559901,100030.0,100020.0,0.71422664]
[1734064667295,0.24870025,100030.0,100020.0,0.71422664]
[1734064667507,0.34867525,100030.0,100020.0,0.71422664]
[1734064668299,0.54829009,100030.0,100020.0,0.412782]
[1734064668495,0.42859108,100030.0,100020.0,0.412782]
[1734064670503,0.42859108,100030.0,100020.0,0.6511254]
[1734064670699,0.60865639,100030.0,100020.0,0.412782]
[1734064671094,0.60865639,100030.0,100020.0,0.051982]
[1734064671306,0.45901855,100030.0,100020.0,0.051982]
[1734064673108,0.45901855,100030.0,100020.0,0.002]
[1734064673109,0.81981855,100030.0,100020.0,0.002]
[1734064675101,0.70285448,100030.0,100020.0,0.002]
[1734064675303,0.63975324,100030.0,100020.0,0.002]
[1734064675504,0.81949882,100030.0,100020.0,0.002]
[1734064677203,0.88260006,100030.0,100020.0,0.002]
[1734064677506,0.81949882,100030.0,100020.0,0.002]
[1734064682813,0.45869882,100030.0,100020.0,0.051982]
[1734064683009,0.45869882,100030.0,100020.0,0.11508324]
[1734064683202,0.45869882,100030.0,100020.0,0.051982]
[1734064696327,0.45869882,100030.0,100020.0,0.002]
[1734064696514,0.88260006,100030.0,100020.0,0.002]
[1734064696718,0.81949882,100030.0,100020.0,0.002]
[1734064697223,0.049987,100010.0,100000.0,0.94823847]
[1734064697413,0.26293584,100010.0,100000.0,0.2883344]
[1734064697922,0.26293584,100010.0,100000.0,0.29550425]
[1734064697923,0.87579601,100010.0,100000.0,0.29550425]
[1734064698129,0.75591084,100010.0,100000.0,0.2383434]
[1734064698420,0.75591084,100010.0,100000.0,0.29549945]
[1734064698421,0.93572797,100010.0,100000.0,0.29549945]
[1734064698626,0.73589337,100010.0,99997.0,0.2383434]
[1734064698924,0.11988738,99998.0,99993.0,0.2383434]
[1734064699127,0.049994,99996.0,99993.0,0.2383434]
[1734064699316,0.049994,99996.0,99991.0,0.2383434]
[1734064699317,0.16988138,99996.0,99991.0,0.2383434]
[1734064699632,0.08987719,99994.0,99990.0,0.3188404]
[1734064699823,0.08987719,99993.0,99990.0,0.3188404]
[1734064700009,0.08987719,99993.0,99990.0,0.080497]
[1734064700214,0.1000045,99992.0,99990.0,0.080497]
[1734064700815,0.1000045,99992.0,99990.0,0.058997]
[1734064701012,0.1000045,99992.0,99990.0,0.064997]
[1734064701212,0.04373339,99995.0,99994.0,0.049995]
[1734064701419,0.04373339,99995.0,99994.0,0.410795]
[1734064701621,0.14374239,99995.0,99994.0,0.410795]
[1734064702228,0.19373739,99995.0,99991.0,0.2383434]
[1734064702426,0.19373739,99995.0,99990.0,0.2533434]
[1734064702622,0.19373739,99995.0,99990.0,0.015]
[1734064703521,0.14374239,99995.0,99990.0,0.009]
[1734064703723,0.049996,99993.0,99990.0,0.009]
[1734064703930,0.049996,99993.0,99986.0,0.5991434]
[1734064703931,0.131709,99995.0,99994.0,0.009]
[1734064704125,0.0317,99995.0,99994.0,0.009]
[1734064704327,0.1317055,99995.0,99994.0,0.009]
[1734064704633,0.1317055,99995.0,99993.0,0.049995]
[1734064705039,0.14386109,99995.0,99993.0,0.049995]
[1734064705238,0.14386109,99995.0,99994.0,0.009]
[1734064706846,0.14386109,99995.0,99986.0,0.410799]
[1734064707036,0.19385609,99995.0,99994.0,0.005]
[1734064707740,0.19385609,99995.0,99994.0,0.014]
[1734064708442,0.19385609,99995.0,99994.0,0.009]
[1734064710646,0.19385609,99995.0,99994.0,0.014]
[1734064724656,0.28373328,99995.0,99994.0,0.014]
[1734064724850,0.19385609,99995.0,99994.0,0.014]
[1734064726347,0.31374347,99995.0,99994.0,0.014]
[1734064726750,0.19385609,99995.0,99994.0,0.2523434]
[1734064727446,0.19385609,99995.0,99994.0,0.014]
[1734064728151,0.31381164,99995.0,99994.0,0.014]
[1734064728359,0.31381201,99995.0,99994.0,0.014]
[1734064728658,0.19385609,99995.0,99994.0,0.2523434]
[1734064728959,0.19385609,99995.0,99994.0,0.25308856]
[1734064731050,0.19385609,99995.0,99994.0,0.014]
[1734064731561,0.19385609,99995.0,99994.0,0.25308856]
[1734064731752,0.19385609,99995.0,99994.0,0.014]
[1734064733252,0.24247584,99995.0,99994.0,0.014]
[1734064733455,0.55465609,99995.0,99994.0,0.014]
[1734064733659,0.60327904,99995.0,99994.0,0.014]
[1734064733956,0.78309617,99995.0,99994.0,0.014]
[1734064734159,0.60327904,99995.0,99994.0,0.014]
[1734064734551,0.78318518,99995.0,99994.0,0.014]
[1734064734751,0.60327904,99995.0,99994.0,0.014]
[1734064735056,0.60327904,99995.0,99978.0,0.23908856]
[1734064735255,0.050004,99976.0,99975.0,0.23908856]
[1734064735563,0.050005,99974.0,99973.0,0.23908856]
[1734064735761,0.050006,99972.0,99970.0,0.24058889]
[1734064736151,0.050006,99972.0,99970.0,0.00150033]
[1734064736468,0.100029,99971.0,99970.0,0.00150033]
[1734064736653,0.100029,99971.0,99970.0,0.05871659]
[1734064736851,0.100029,99971.0,99970.0,0.00150033]
[1734064737050,0.100029,99971.0,99970.0,0.06771602]
[1734064737557,0.100029,99971.0,99970.0,0.25835278]
[1734064737856,0.100029,99971.0,99970.0,0.01950033]
[1734064738255,0.131229,99971.0,99970.0,0.01950033]
[1734064738453,0.001,99971.0,99970.0,0.06950733]
[1734064738647,0.11994024,99992.0,99970.0,0.36525973]
[1734064738852,0.14992094,100000.0,99991.0,0.3608]
[1734064738853,0.049993,99998.0,99991.0,0.3608]
[1734064739155,0.11994024,100000.0,99998.0,0.049993]
[1734064739461,0.11994024,100000.0,99999.0,0.3608]
[1734064739462,0.13138623,100000.0,99999.0,0.3608]
[1734064739659,0.01144599,100000.0,99999.0,0.3608]
[1734064739850,0.33971379,100010.0,99999.0,0.3608]
[1734064740046,0.33971379,100010.0,99999.0,0.410792]
[1734064740047,0.1000055,100000.0,99999.0,0.410792]
[1734064740258,0.001,100000.0,99999.0,0.410792]
[1734064740658,0.1010005,100000.0,99999.0,0.410792]
[1734064740862,0.1000005,100000.0,99999.0,0.412792]
[1734064741256,0.35446795,100010.0,99999.0,0.412792]
[1734064741453,0.1000005,100000.0,99999.0,0.412792]
[1734064741650,0.35446795,100010.0,99999.0,0.412792]
[1734064742062,0.45446845,100010.0,99999.0,0.412792]
[1734064742250,0.35446795,100010.0,99999.0,0.412792]
[1734064742457,0.45446345,100010.0,99999.0,0.412792]
[1734064742656,0.45446345,100010.0,99999.0,0.060992]
[1734064742657,0.001,100000.0,99999.0,0.060992]
[1734064742869,0.12094024,100000.0,99999.0,0.060992]